bitfinex-derivatives/quotes_SOLF0:USTF0_20251020
["timestamp","ask_amount","ask_price","bid_price","bid_amount"]
[1760983981982,4.787,187.97,187.94,2.81]
[1760983982489,2.81,188.02,187.94,2.81]
[1760983983979,4.7866,187.99,187.94,2.81]
[1760983984182,7.5966,187.99,187.94,2.81]
[1760983984580,4.7866,187.99,187.94,2.81]
[1760983985387,4.7867,187.98,187.94,2.81]
[1760983986383,7.5967,187.98,187.94,2.81]
[1760983989276,4.7867,187.98,187.94,2.81]
[1760983990388,7.5967,187.98,187.94,2.81]
[1760983991185,2.81,187.97,187.94,2.81]
[1760983991385,7.597,187.97,187.94,2.81]
[1760983993179,4.787,187.97,187.94,2.81]
[1760983993482,44.38,188.05,187.94,2.81]
[1760983993783,2.81,188.02,187.9,2.81]
[1760983993993,2.83,188.01,187.87,2.81]
[1760983994191,2.83,188.0,187.87,2.81]
[1760983994684,2.83,187.91,187.87,2.81]
[1760983994984,2.83,187.91,187.84,4.92832222]
[1760983995292,9.5726,188.0,187.84,2.81]
[1760983995293,2.83,187.89,187.84,2.81]
[1760983995777,2.83,187.88,187.84,2.81]
[1760983995977,2.83,187.95,187.84,2.81]
[1760983996781,7.6186,187.91,187.85,7.5999]
[1760983997588,2.83,187.9,187.85,7.5999]
[1760983997791,2.83,187.89,187.85,2.81]
[1760983999483,7.619,187.89,187.85,2.81]
[1760983999689,2.83,187.88,187.83,7.6004]
[1760983999889,2.83,187.88,187.84,2.81]
[1760984000583,2.83,187.88,187.84,7.6001]
[1760984001785,7.6193,187.88,187.82,4.7906]
[1760984001990,2.83,187.87,187.8,2.81]
[1760984002190,2.83,187.95,187.8,2.81]
[1760984002992,7.619,187.89,187.82,7.6005]
[1760984003295,7.619,187.89,187.83,2.81]
[1760984003698,2.83,187.88,187.83,2.81]
[1760984004081,7.6192,187.88,187.83,2.81]
[1760984004286,2.83,187.87,187.83,2.81]
[1760984005089,7.6188,187.9,187.84,2.81]
[1760984005394,2.83,187.89,187.84,2.81]
[1760984006097,2.83,187.89,187.84,7.6]
[1760984006593,2.83,187.89,187.85,2.81]
[1760984008496,2.94,187.88,187.85,2.81]
[1760984010395,2.94,187.88,187.83,7.6503]
[1760984010588,2.94,187.87,187.81,2.86]
[1760984011994,2.94,187.86,187.82,7.6507]
[1760984012392,2.94,187.86,187.83,2.86]
[1760984012592,2.94,187.86,187.82,4.7907]
[1760984012792,2.94,187.86,187.82,7.6507]
[1760984014204,2.94,187.86,187.83,2.86]
[1760984015303,4.7896,187.87,187.83,2.86]
[1760984016905,4.7891,187.89,187.84,2.86]
[1760984017106,2.94,187.93,187.84,2.86]
[1760984017604,4.7888,187.9,187.85,4.7898]
[1760984017797,2.94,187.89,187.86,2.86]
[1760984018201,2.94,187.92,187.87,2.86]
[1760984019409,4.7885,187.91,187.87,2.86]
[1760984019706,7.7285,187.91,187.87,2.86]
[1760984020906,2.94,187.89,187.85,4.7898]
[1760984021102,2.94,187.89,187.85,7.6498]
[1760984021407,4.7888,187.9,187.86,2.86]
[1760984021706,4.7888,187.9,187.87,2.86]
[1760984022097,7.7283,187.92,187.87,2.86]
[1760984022608,2.94,187.91,187.87,2.86]
[1760984023911,7.7285,187.91,187.87,2.86]
[1760984031215,2.94,187.91,187.87,2.86]
[1760984031407,2.94,187.95,187.84,4.90842075]
[1760984031715,2.94,187.99,187.88,2.86]
[1760984032210,4.7875,187.95,187.88,7.649]
[1760984032415,4.7875,187.95,187.89,2.86]
[1760984032617,2.94,187.94,187.89,2.86]
[1760984033814,7.7274,187.95,187.91,2.86]
[1760984034019,2.94,187.98,187.91,2.86]
[1760984035510,2.94,187.93,187.89,7.6488]
[1760984035711,2.94,187.93,187.89,2.86]
[1760984035907,2.94,187.91,187.86,4.90842075]
[1760984036106,2.94,187.91,187.85,7.76842075]
[1760984037115,2.94,187.93,187.87,2.86]
[1760984037413,2.94,187.93,187.88,2.74]
[1760984037616,2.94,187.93,187.89,2.74]
[1760984038313,2.84,187.98,187.89,7.64842075]
[1760984038608,2.84,187.98,187.9,2.74]
[1760984038915,4.7872,187.96,187.9,2.74]
[1760984039317,4.7872,187.96,187.9,7.64842075]
[1760984040007,4.7872,187.96,187.9,12.43702075]
[1760984040316,4.7872,187.96,187.9,7.5286]
[1760984040612,2.84,187.95,187.91,2.74]
[1760984041809,7.6272,187.96,187.91,2.74]
[1760984042016,2.84,187.95,187.91,2.74]
[1760984042515,2.84,187.95,187.92,2.74]
[1760984043016,2.84,187.94,187.91,4.90842075]
[1760984043321,2.84,187.94,187.88,4.90842075]
[1760984044117,7.6282,187.92,187.89,2.74]
[1760984044721,4.7882,187.92,187.89,2.74]
[1760984045321,7.6282,187.92,187.89,2.74]
[1760984046520,2.84,187.91,187.88,2.74]
[1760984046722,7.6285,187.91,187.88,2.74]
[1760984047321,4.7874,187.95,187.88,2.74]
[1760984047518,4.7874,187.95,187.89,7.66223555]
[1760984047918,4.7874,187.95,187.89,12.45103555]
[1760984048325,7.6274,187.95,187.89,12.45103555]
[1760984050622,4.7877,187.94,187.89,12.45103555]
[1760984050821,2.84,187.93,187.9,2.74]
[1760984056036,2.84,187.93,187.88,7.76223555]
[1760984056037,2.83,187.92,187.88,7.76223555]
[1760984056230,2.83,187.92,187.88,2.84]
[1760984056429,2.83,187.92,187.88,7.76223555]
[1760984058140,2.83,187.91,187.88,2.84]
[1760984059339,2.83,187.9,187.86,7.76223555]
[1760984060134,2.83,187.9,187.87,2.84]
[1760984064146,4.788,187.93,187.87,2.84]
[1760984064342,4.788,187.93,187.88,2.84]
[1760984064645,2.83,187.92,187.88,2.84]
[1760984065645,2.83,187.92,187.89,2.84]
[1760984067643,4.788,187.93,187.89,2.84]
[1760984067842,2.7,187.99,187.91,2.68]
[1760984068048,2.7,188.03,187.93,2.68]
[1760984068248,2.7,188.03,187.94,2.68]
[1760984068443,2.7,187.99,187.94,2.68]
[1760984068847,2.7,187.99,187.92,4.92223555]
[1760984069649,4.7869,187.97,187.92,4.92223555]
[1760984069847,2.7,187.96,187.92,2.68]
[1760984070844,2.7,187.95,187.91,4.92223555]
[1760984071041,2.7,187.95,187.9,7.60223555]
[1760984071444,2.7,187.95,187.91,2.68]
[1760984071949,7.4877,187.94,187.91,2.68]
[1760984072337,2.7,187.93,187.9,4.92223555]
[1760984072542,2.7,187.93,187.9,7.60223555]
[1760984075449,4.7877,187.94,187.91,2.68]
[1760984075654,7.4872,187.96,187.91,2.68]
[1760984075950,2.7,187.95,187.91,2.68]
[1760984078353,4.7874,187.95,187.91,2.68]
[1760984078656,2.7,187.94,187.91,2.68]
[1760984078855,7.487,187.97,187.91,2.68]
[1760984079059,4.787,187.97,187.92,2.68]
[1760984079258,2.7,187.96,187.92,2.68]
[1760984079460,2.7,187.95,187.92,2.68]
[1760984084557,2.7,187.95,187.91,4.92223555]
[1760984084761,2.7,187.94,187.9,7.60223555]
[1760984084950,2.7,187.94,187.9,4.92223555]
[1760984085358,4.7877,187.94,187.9,4.92223555]
[1760984085563,2.7,187.93,187.9,4.92223555]
[1760984087665,2.7,187.92,187.9,4.92223555]
[1760984087866,2.7,187.92,187.89,7.60223555]
[1760984090363,2.7,187.91,187.89,2.68]
[1760984091864,2.7,187.9,187.88,4.92223555]
[1760984092261,2.7,187.9,187.88,7.60223555]
[1760984092568,2.7,187.9,187.88,2.68]
[1760984093569,2.7,187.89,187.87,4.92223555]
[1760984094162,2.7,187.88,187.86,4.92223555]
[1760984094365,2.7,187.88,187.85,4.92223555]
[1760984094668,7.4891,187.89,187.86,2.68]
[1760984096760,2.7,187.88,187.86,2.68]
[1760984100969,2.88,187.87,187.84,4.92802951]
[1760984101674,2.88,187.93,187.85,2.75]
[1760984102576,2.88,187.93,187.84,4.92802951]
[1760984103174,7.6697,187.86,187.84,4.92802951]
[1760984103476,7.6697,187.86,187.84,7.67802951]
[1760984104776,4.7893,187.88,187.84,7.67802951]
[1760984104981,2.88,187.87,187.84,7.67802951]
[1760984105682,7.6695,187.87,187.84,7.67802951]
[1760984106481,7.6695,187.87,187.84,4.92802951]
[1760984106778,7.6695,187.87,187.84,7.67802951]
[1760984108177,7.6695,187.87,187.84,2.75]
[1760984110483,2.88,187.86,187.83,4.92802951]
[1760984110786,2.88,187.86,187.84,2.75]
[1760984111383,4.97408561,187.96,187.84,2.75]
[1760984111589,4.97408561,188.0,187.86,2.75]
[1760984111787,2.88,187.99,187.88,2.75]
[1760984113074,4.97408561,188.02,187.88,2.75]
[1760984113278,2.88,188.03,187.91,2.75]
[1760984113976,2.88,188.03,187.89,4.92802951]
[1760984113977,2.88,188.0,187.92,2.75]
[1760984114178,2.88,188.0,187.89,2.79]
[1760984114687,7.4773,187.96,187.89,2.79]
[1760984115096,2.69,187.95,187.89,7.71802951]
[1760984115476,2.69,187.94,187.89,7.71802951]
[1760984115890,2.69,187.94,187.9,2.79]
[1760984116281,2.69,187.94,187.89,4.92802951]
[1760984116282,2.69,187.92,187.87,7.71802951]
[1760984116589,2.69,187.92,187.88,2.79]
[1760984116981,7.4783,187.92,187.86,4.92802951]
[1760984117181,2.69,187.91,187.85,4.92802951]
[1760984117591,2.69,187.91,187.85,7.71802951]
[1760984118091,2.69,187.91,187.86,2.79]
[1760984118887,4.7883,187.92,187.87,2.79]
[1760984119289,2.69,187.91,187.87,2.79]
[1760984121888,2.69,187.9,187.85,7.71802951]
[1760984122289,2.69,187.9,187.86,2.79]
[1760984123094,4.7888,187.9,187.86,2.79]
[1760984123288,2.69,187.89,187.86,4.92802951]
[1760984123590,29.44719917,188.01,187.84,4.92802951]
[1760984123591,2.69,187.86,187.84,4.92802951]
[1760984124495,2.69,187.86,187.85,4.92802951]
[1760984124695,7.479,187.89,187.85,7.71802951]
[1760984125399,4.7885,187.91,187.86,2.79]
[1760984125604,2.69,187.9,187.86,2.79]
[1760984126898,2.69,187.89,187.86,2.79]
[1760984127288,4.7888,187.9,187.86,2.79]
[1760984127593,7.5688,187.9,187.86,2.79]
[1760984127996,4.7888,187.9,187.86,2.79]
[1760984128296,2.78,187.93,187.86,7.71802951]
[1760984129398,2.78,187.93,187.87,2.76]
[1760984129894,2.78,187.93,187.87,7.68802951]
[1760984130096,19.12,187.96,187.9,2.76]
[1760984130695,7.5675,187.95,187.9,2.76]
[1760984130902,7.5675,187.95,187.91,2.76]
[1760984131295,4.787,187.97,187.91,2.76]
[1760984132200,2.78,187.95,187.91,2.76]
[1760984133301,2.78,187.94,187.9,4.92802951]
[1760984134700,9.5717,188.02,187.85,9.85605903]
[1760984134701,2.78,187.93,187.89,4.92802951]
[1760984134891,2.78,187.93,187.86,4.92650571]
[1760984135091,2.78,187.92,187.79,9.85605903]
[1760984135496,2.78,187.9,187.77,9.85605903]
[1760984135698,2.78,187.9,187.78,12.61605903]
[1760984135894,4.7903,187.84,187.78,12.61605903]
[1760984136205,4.7903,187.84,187.78,2.76]
[1760984136907,4.7903,187.84,187.78,7.5516]
[1760984137594,7.5698,187.86,187.79,2.76]
[1760984137799,2.78,187.86,187.81,2.76]
[1760984139007,2.78,187.86,187.81,4.7908]
[1760984139211,2.78,187.86,187.82,2.76]
[1760984139409,4.97475625,187.94,187.82,2.76]
[1760984139602,2.78,187.92,187.82,2.76]
[1760984140504,4.7893,187.88,187.82,7.5506]
[1760984140710,2.78,187.9,187.83,2.76]
[1760984141211,4.789,187.89,187.83,7.5503]
[1760984142803,4.7893,187.88,187.83,2.76]
[1760984143004,2.78,187.87,187.79,2.76]
[1760984144509,7.5695,187.87,187.81,2.76]
[1760984144711,4.7895,187.87,187.81,2.76]
[1760984146013,4.7895,187.87,187.81,7.5509]
[1760984148012,27.98,187.93,187.72,75.14141204]
[1760984148013,2.78,187.85,187.77,2.76]
[1760984148908,4.7906,187.83,187.77,2.76]
[1760984149113,7.5706,187.83,187.77,2.76]
[1760984151819,7.5706,187.83,187.77,7.5518]
[1760984152217,7.5706,187.83,187.77,2.76]
[1760984153613,2.78,187.82,187.77,2.76]
[1760984154422,2.78,187.81,187.77,2.76]
[1760984154920,4.7913,187.8,187.73,7.5528]
[1760984155130,7.5713,187.8,187.73,2.76]
[1760984155513,2.78,187.78,187.74,4.7926]
[1760984155822,2.78,187.78,187.74,7.5526]
[1760984156614,2.78,187.78,187.74,4.7926]
[1760984156913,2.78,187.81,187.75,2.76]
[1760984158221,7.6613,187.8,187.75,2.76]
[1760984158616,4.7913,187.8,187.75,2.76]
[1760984158824,7.6613,187.8,187.76,2.82]
[1760984159322,2.87,187.79,187.76,2.82]
[1760984160108,2.87,187.79,187.75,4.7923]
[1760984160309,2.87,187.78,187.67,18.29721188]
[1760984160517,2.87,187.78,187.71,12.67161811]
[1760984160723,2.87,187.78,187.72,2.82]
[1760984161021,7.6613,187.8,187.73,2.82]
[1760984161222,2.87,187.79,187.73,2.82]
[1760984161820,2.87,187.79,187.73,7.6129]
[1760984162822,4.7916,187.79,187.73,2.82]
[1760984163126,2.87,187.78,187.71,4.7934]
[1760984163322,4.7924,187.76,187.69,2.82]
[1760984163513,2.87,187.75,187.69,2.82]
[1760984165027,2.87,187.75,187.7,6.56908546]
[1760984165326,2.87,187.75,187.63,6.56908546]
[1760984165526,2.87,187.75,187.63,2.82]
[1760984165831,2.87,187.71,187.63,2.82]
[1760984166333,2.87,187.78,187.63,2.82]
[1760984166531,2.87,187.76,187.64,5.15579984]
[1760984166730,7.6624,187.76,187.67,4.7943]
[1760984167030,2.87,187.75,187.67,2.82]
[1760984167435,2.87,187.74,187.64,2.82]
[1760984168132,2.87,187.7,187.64,2.82]
[1760984169027,7.664,187.7,187.64,2.82]
[1760984169336,2.87,187.69,187.61,2.82]
[1760984169723,2.87,187.67,187.61,2.82]
[1760984170138,14.74019984,187.77,187.61,2.82]
[1760984170139,2.87,187.69,187.62,2.82]
[1760984172033,4.7944,187.68,187.62,2.82]
[1760984172629,2.87,187.68,187.54,2.82]
[1760984172840,2.87,187.67,187.54,2.82]
[1760984173230,4.7957,187.63,187.56,2.82]
[1760984173530,7.6657,187.63,187.56,2.82]
[1760984176137,4.7952,187.65,187.57,2.73]
[1760984176438,7.4552,187.65,187.57,2.73]
[1760984177131,7.4552,187.65,187.58,2.73]
[1760984177340,2.66,187.65,187.58,2.73]
[1760984177524,2.66,187.65,187.59,4.7964]
[1760984177724,2.66,187.65,187.6,2.73]
[1760984179737,7.4551,187.65,187.6,2.73]
[1760984179936,2.66,187.71,187.6,2.73]
[1760984180138,2.66,187.71,187.61,2.73]
[1760984181032,7.4538,187.7,187.63,7.5254]
[1760984181634,7.4538,187.7,187.65,2.73]
[1760984181837,9.5381955,187.72,187.65,2.73]
[1760984182139,4.7933,187.72,187.65,2.73]
[1760984182333,8.7966879,187.72,187.65,2.73]
[1760984183037,8.7966879,187.72,187.65,7.5249]
[1760984183236,8.7966879,187.72,187.66,2.73]
[1760984183837,8.7966879,187.72,187.66,4.7946]
[1760984184041,8.7966879,187.72,187.66,7.5246]
[1760984184241,4.0033879,187.72,187.66,2.73]
[1760984184437,31.1,187.73,187.66,2.73]
[1760984184634,2.66,187.79,187.69,2.73]
[1760984184830,4.7924,187.76,187.69,2.73]
[1760984185036,7.4524,187.76,187.69,2.73]
[1760984185939,7.4524,187.76,187.69,4.7939]
[1760984186247,4.00355425,187.75,187.7,2.73]
[1760984186641,8.79595425,187.76,187.7,2.73]
[1760984188343,4.00355425,187.75,187.7,2.73]
[1760984188950,6.84355425,187.75,187.7,2.73]
[1760984189246,2.84,187.74,187.7,2.73]
[1760984189446,6.84355425,187.74,187.7,2.73]
[1760984190042,2.84,187.73,187.7,2.73]
[1760984190745,2.84,187.73,187.67,7.5143]
[1760984190946,2.84,187.71,187.63,2.72]
[1760984191451,2.84,187.67,187.63,2.72]
[1760984192142,7.6346,187.67,187.63,2.72]
[1760984192545,2.84,187.66,187.6,2.72]
[1760984192945,2.84,187.66,187.6,7.5161]
[1760984195853,4.7946,187.67,187.61,7.5159]
[1760984196054,7.6341,187.69,187.62,2.72]
[1760984196548,4.7936,187.71,187.63,2.72]
[1760984196954,2.84,187.76,187.63,2.72]
[1760984197157,4.7931,187.73,187.66,2.72]
[1760984197839,7.6331,187.73,187.69,2.72]
[1760984198041,4.7931,187.73,187.69,2.72]
[1760984198244,2.84,187.72,187.69,2.72]
[1760984199655,7.6325,187.75,187.69,2.72]
[1760984199851,3.88851503,187.74,187.69,2.72]
[1760984200156,3.88851503,187.74,187.7,2.72]
[1760984200451,6.72851503,187.74,187.7,2.72]
[1760984200656,3.88851503,187.74,187.72,2.72]
[1760984200853,2.84,187.75,187.69,2.72]
[1760984201153,3.88851503,187.74,187.69,7.5138]
[1760984201459,3.88851503,187.74,187.7,2.72]
[1760984202552,2.84,187.75,187.7,2.72]
[1760984203752,2.84,187.75,187.7,4.7936]
[1760984203960,7.6323,187.76,187.71,2.72]
[1760984204259,2.84,187.75,187.71,2.72]
[1760984205463,2.84,187.75,187.64,2.72]
[1760984206659,7.6328,187.74,187.7,2.72]
[1760984206961,2.84,187.73,187.7,2.72]
[1760984207953,4.7928,187.74,187.7,2.72]
[1760984208354,7.6323,187.76,187.71,2.72]
[1760984208658,12.19615995,187.76,187.71,2.72]
[1760984208856,7.40385995,187.75,187.71,2.72]
[1760984210062,9.35565995,187.78,187.62,5.15579984]
[1760984210255,9.35565995,187.78,187.67,2.72]
[1760984210651,12.19565995,187.78,187.67,2.72]
[1760984210863,4.56385995,187.77,187.72,4.7931]
[1760984211163,4.56385995,187.77,187.73,2.72]
[1760984211164,7.40385995,187.77,187.73,2.72]
[1760984211353,2.84,187.77,187.73,2.72]
[1760984211856,7.632,187.77,187.73,2.72]
[1760984212160,2.84,187.76,187.72,7.5131]
[1760984213059,2.84,187.76,187.73,2.72]
[1760984213253,2.84,187.76,187.72,4.7931]
[1760984213653,7.6322,187.76,187.7,7.5135]
[1760984214760,2.84,187.74,187.68,4.794]
[1760984214950,2.84,187.74,187.66,2.72]
[1760984215455,2.84,187.73,187.67,4.7944]
[1760984216058,2.84,187.73,187.67,7.5144]
[1760984217065,7.633,187.73,187.67,7.5144]
[1760984217467,2.84,187.73,187.67,7.5144]
[1760984217959,2.68,187.71,187.67,2.72]
[1760984218764,7.4735,187.71,187.67,2.72]
[1760984218965,2.68,187.7,187.67,2.72]
[1760984219857,9.5839,187.77,187.63,4.92421224]
[1760984220065,9.5839,187.77,187.59,2.9]
[1760984220066,2.68,187.69,187.57,4.92421224]
[1760984220260,2.68,187.67,187.57,4.92421224]
[1760984220461,2.68,187.67,187.58,2.9]
[1760984220660,2.68,187.65,187.57,4.92421224]
[1760984220963,2.68,187.64,187.54,4.92421224]
[1760984221565,2.68,187.64,187.54,7.82421224]
[1760984221770,2.68,187.62,187.55,2.9]
[1760984221961,4.55478393,187.67,187.47,17.04]
[1760984221962,2.68,187.66,187.57,2.9]
[1760984222368,4.7953,187.64,187.57,7.6969]
[1760984222570,2.68,187.66,187.58,2.9]
[1760984222776,2.68,187.71,187.59,7.82421224]
[1760984222961,8.38192413,187.76,187.62,2.9]
[1760984222962,7.23467245,187.74,187.62,2.9]
[1760984223272,7.23467245,187.73,187.62,2.9]
[1760984223462,4.55467245,187.72,187.62,2.9]
[1760984224059,7.23467245,187.72,187.65,2.9]
[1760984224262,2.68,187.7,187.61,2.9]
[1760984224672,2.68,187.7,187.62,7.6956]
[1760984225172,7.23467245,187.69,187.62,7.6956]
[1760984225469,4.55467245,187.68,187.62,7.6956]
[1760984225666,4.7943,187.68,187.64,2.9]
[1760984225973,2.68,187.74,187.64,2.9]
[1760984226158,4.7933,187.72,187.65,4.7949]
[1760984226357,4.75756834,187.71,187.66,2.9]
[1760984226572,4.75756834,187.7,187.66,2.9]
[1760984226772,7.43688231,187.71,187.66,2.9]
[1760984226974,2.68,187.71,187.66,2.9]
[1760984227272,4.7933,187.72,187.66,2.9]
[1760984227459,4.75707205,187.71,187.67,2.9]
[1760984227659,4.7931,187.73,187.67,2.9]
[1760984227876,4.75706531,187.72,187.67,2.9]
[1760984228064,4.75706531,187.71,187.67,2.9]
[1760984228370,4.7931,187.73,187.68,2.9]
[1760984228571,4.75726414,187.72,187.68,2.9]
[1760984228773,4.75726414,187.71,187.68,2.9]
[1760984228975,7.4731,187.73,187.68,2.9]
[1760984229174,4.75726414,187.72,187.68,2.9]
[1760984229375,4.75726414,187.71,187.68,2.9]
[1760984229573,7.4731,187.73,187.68,2.9]
[1760984229776,4.75726082,187.72,187.69,2.9]
[1760984230074,4.7931,187.73,187.69,2.9]
[1760984230265,4.75729051,187.72,187.69,2.9]
[1760984230462,4.7931,187.73,187.69,2.9]
[1760984230665,4.7570984,187.72,187.69,2.9]
[1760984230861,7.4731,187.73,187.69,2.9]
[1760984231077,4.7571006,187.72,187.69,2.9]
[1760984231284,2.68,187.72,187.68,4.7942]
[1760984231767,2.68,187.72,187.68,7.6942]
[1760984232174,4.75755503,187.71,187.64,2.9]
[1760984232368,7.43755503,187.7,187.64,2.9]
[1760984232677,7.4745,187.68,187.64,2.9]
[1760984232873,4.75910364,187.67,187.6,2.9]
[1760984233065,2.68,187.65,187.6,2.9]
[1760984234072,7.4753,187.65,187.6,2.9]
[1760984235475,2.94,187.63,187.56,52.01421224]
[1760984235675,2.94,187.63,187.56,7.65421224]
[1760984235881,2.94,187.63,187.54,4.92421224]
[1760984236191,7.7365,187.6,187.54,9.72201224]
[1760984236373,2.94,187.6,187.54,4.92421224]
[1760984236872,2.94,187.63,187.55,7.65421224]
[1760984237278,2.94,187.63,187.55,2.73]
[1760984237980,4.7963,187.61,187.55,7.5276]
[1760984238284,2.94,187.63,187.56,2.73]
[1760984238480,14.55766153,187.71,187.56,2.73]
[1760984238481,2.94,187.67,187.56,2.73]
[1760984238678,2.94,187.65,187.56,2.73]
[1760984238880,4.7957,187.63,187.57,4.797]
[1760984239078,7.7357,187.63,187.57,4.797]
[1760984239278,7.736,187.62,187.56,2.73]
[1760984241083,7.736,187.62,187.56,7.5273]
[1760984241581,7.736,187.62,187.56,2.73]
[1760984241773,2.94,187.6,187.54,9.72201224]
[1760984241974,2.94,187.6,187.53,4.92421224]
[1760984242176,4.7968,187.59,187.53,4.92421224]
[1760984242583,2.94,187.6,187.53,4.92421224]
[1760984242780,2.94,187.55,187.51,4.92421224]
[1760984244177,7.7379,187.55,187.51,4.92421224]
[1760984244381,2.94,187.54,187.51,4.92421224]
[1760984244984,2.94,187.57,187.5,4.92421224]
[1760984245283,2.94,187.57,187.49,4.92421224]
[1760984245882,2.94,187.53,187.49,4.92421224]
[1760984246278,2.94,187.53,187.48,4.92421224]
[1760984246984,2.94,187.61,187.48,4.92421224]
[1760984247182,2.94,187.6,187.47,4.92421224]
[1760984247690,2.75,187.5,187.47,4.92421224]
[1760984248290,2.75,187.5,187.46,4.92421224]
[1760984248588,2.75,187.48,187.46,4.92421224]
[1760984248986,2.75,187.48,187.43,6.54904751]
[1760984249184,2.75,187.48,187.44,2.87]
[1760984249491,4.7988,187.51,187.44,7.6703]
[1760984249685,2.75,187.52,187.44,7.6703]
[1760984249887,2.75,187.51,187.44,7.6703]
[1760984250490,7.5489,187.51,187.44,7.6703]
[1760984250685,2.75,187.51,187.44,7.6703]
[1760984250885,2.75,187.51,187.42,6.54904751]
[1760984251086,2.75,187.51,187.41,6.54904751]
[1760984251396,4.7996,187.48,187.41,6.54904751]
[1760984251694,7.5496,187.48,187.41,6.54904751]
[1760984252485,7.5496,187.48,187.4,14.22044751]
[1760984252688,7.5496,187.48,187.4,7.6714]
[1760984253085,2.75,187.47,187.4,2.87]
[1760984253291,2.75,187.53,187.38,2.87]
[1760984253990,4.8001,187.46,187.39,7.6716]
[1760984254388,4.8003,187.45,187.39,7.6716]
[1760984254589,2.75,187.53,187.41,2.87]
[1760984254990,2.75,187.52,187.41,2.87]
[1760984256000,4.7996,187.48,187.41,2.87]
[1760984256404,4.7996,187.48,187.42,2.87]
[1760984256992,4.7998,187.47,187.42,2.87]
[1760984257193,2.75,187.47,187.42,2.87]
[1760984257892,7.5498,187.47,187.42,2.87]
[1760984259100,2.75,187.46,187.37,2.87]
[1760984260102,4.8004,187.45,187.39,2.87]
[1760984260899,4.8006,187.44,187.39,2.87]
[1760984261909,4.8001,187.46,187.4,2.87]
[1760984262202,2.75,187.47,187.4,2.87]
[1760984262702,7.5503,187.45,187.4,2.87]
[1760984266313,2.75,187.45,187.4,2.87]
[1760984266704,2.75,187.49,187.4,2.87]
[1760984268422,2.75,187.52,187.41,2.87]
[1760984268713,2.75,187.5,187.41,2.87]
[1760984269012,2.75,187.47,187.41,2.87]
[1760984269711,7.5495,187.48,187.41,2.87]
[1760984269910,2.75,187.47,187.41,2.87]
[1760984270116,2.75,187.51,187.41,2.87]
[1760984270919,4.7996,187.48,187.42,4.8008]
[1760984271119,7.5496,187.48,187.41,2.87]
[1760984271416,2.75,187.48,187.41,2.87]
[1760984271818,7.55,187.46,187.42,2.87]
[1760984272205,2.75,187.51,187.42,2.87]
[1760984272819,2.75,187.46,187.42,2.87]